[Event "8. Arber-Schachopen 2019"]
[Site "Bodenmais"]
[Date "2019.08.03"]
[Round "8.24"]
[White "Neiss, Josef Martin"]
[Black "Pfeifer, Wilfried"]
[Result "1-0"]
[ECO "A04"]
[WhiteElo "2041"]
[BlackElo "1916"]
[Annotator "NA"]
[PlyCount "101"]
[EventDate "2019.07.27"]
[EventCountry "GER"]
[SourceTitle "playchess.com"]
[Source "ChessBase"]
[SourceQuality "1"]
[TimeControl "40/5400+30:1800+30"]

1. Nf3 {[%emt 0:13:15]} f5 {[%emt 0:00:00]} 2. d3 {[%emt 0:00:07]} d6 {[%emt 0:01:04]} 3. e4 {[%emt 0:00:09]} e5 {[%emt 0:00:29]} 4. Nc3 {[%emt 0:02:42]} Nf6 {[%emt 0:02:20]} 5. Bg5 {[%emt 0:04:02]} Be7 {[%emt 0:02:45]} 6. Bxf6 {[%emt 0:05:22]} Bxf6 {[%emt 0:00:09]} 7. d4 {[%emt 0:00:08]} O-O {[%emt 0:02:32]} 8. Bc4+ {[%emt 0:00:41]} Kh8 {[%emt 0:00:09]} 9. dxe5 {[%emt 0:02:22]} dxe5 {[%emt 0:08:24]} 10. Qxd8 {[%emt 0:07:29]} Rxd8 {[%emt 0:00:02]} 11. Nd5 {[%emt 0:06:19]} Na6 {[%emt 0:00:19]} 12. O-O-O {[%emt 0:01:39]} Be6 {[%emt 0:04:54]} 13. exf5 {[%emt 0:04:51]} Bxf5 {[%emt 0:00:12]} 14. Bxa6 {[%emt 0:03:30]} bxa6 {[%emt 0:00:10]} 15. Nxf6 {[%emt 0:01:07]} gxf6 {[%emt 0:00:23]} 16. Rxd8+ {[%emt 0:04:00]} Rxd8 {[%emt 0:00:02]} 17. Rd1 {[%emt 0:00:46]} Rd6 {[%emt 0:05:22]} 18. Nd2 {[%emt 0:06:32]} Kg7 {[%emt 0:10:06]} 19. Nc4 {[%emt 0:00:35]} Rxd1+ {[%emt 0:01:57]} 20. Kxd1 {[%emt 0:00:06]} Be6 {[%emt 0:00:23]} 21. Ne3 {[%emt 0:05:25]} Kf8 {[%emt 0:03:49]} 22. a3 {[%emt 0:00:23]} a5 {[%emt 0:05:02]} 23. Kd2 {[%emt 0:00:30]} Ke7 {[%emt 0:00:21]} 24. Kd3 {[%emt 0:00:42]} a4 {[%emt 0:12:49]} 25. Ke4 {[%emt 0:02:08]} Kd6 {[%emt 0:00:56]} 26. f4 {[%emt 0:02:10]} exf4 {[%emt 0:14:01]} 27. Kxf4 {[%emt 0:00:04]} Bc8 {[%emt 0:05:11]} 28. Ke4 {[%emt 0:02:56]} Bd7 {[%emt 0:04:21]} 29. Kd4 {[%emt 0:04:44]} c5+ {[%emt 0:03:09]} 30. Ke4 {[%emt 0:00:41]} Bc6+ {[%emt 0:03:45]} 31. Kf5 {[%emt 0:02:13]} Ke7 {[%emt 0:00:09]} 32. g3 {[%emt 0:05:05]} Bd7+ {[%emt 0:00:29]} 33. Ke4 {[%emt 0:01:07]} Bc6+ {[%emt 0:00:15]} 34. Kd3 {[%emt 0:00:19]} Bb5+ {[%emt 0:01:47]} 35. Ke4 {[%emt 0:02:05]} Bc6+ {[%emt 0:00:04]} 36. Kf4 {[%emt 0:00:26]} Ke6 {[%emt 0:06:16]} 37. g4 {[%emt 0:02:50]} Bb7 {[%emt 0:00:19]} 38. h4 {[%emt 0:00:34]} Bc6 {[%emt 0:00:51]} 39. c4 {[%emt 0:07:21]} Bd7 {[%emt 0:02:23]} 40. Nd1 {[%emt 0:00:31]} Bc6 {[%emt 0:00:36]} 41. Nf2 {[%emt 0:02:12]} Bg2 {[%emt 0:10:34]} 42. Nd3 {[%emt 0:05:04]} Kd6 {[%emt 0:06:15]} 43. Kf5 {[%emt 0:00:46]} Bf1 {[%emt 0:00:20]} 44. Nf4 {[%emt 0:00:46]} Ke7 {[%emt 0:02:12]} 45. Nd5+ {[%emt 0:00:30]} Kf7 {[%emt 0:00:58]} 46. Nxf6 {[%emt 0:01:26]} Bxc4 {[%emt 0:00:04]} 47. Ne4 {[%emt 0:03:38]} Bd3 {[%emt 0:00:53]} 48. Kf4 {[%emt 0:02:55]} c4 {[%emt 0:01:25]} 49. Nc3 {[%emt 0:00:11]} Bc2 {[%emt 0:01:44]} 50. Nb5 {[%emt 0:00:14]} Ke6 {[%emt 0:02:42]} 51. Nd4+ {[%emt 0:00:03]} 1-0

[Event "8. Arber-Schachopen 2019"]
[Site "Bodenmais"]
[Date "2019.08.03"]
[Round "8.25"]
[White "Kolb, Wolfgang"]
[Black "Meixner, Torsten"]
[Result "1-0"]
[ECO "A13"]
[WhiteElo "2099"]
[BlackElo "1881"]
[Annotator "NA"]
[PlyCount "75"]
[EventDate "2019.07.27"]
[EventCountry "GER"]
[SourceTitle "playchess.com"]
[Source "ChessBase"]
[SourceQuality "1"]
[TimeControl "40/5400+30:1800+30"]

1. c4 {[%emt 0:00:00]} e6 {[%emt 0:00:00]} 2. Nf3 {[%emt 0:00:00]} d5 {[%emt 0:00:01]} 3. b3 {[%emt 0:00:00]} Nf6 {[%emt 0:00:24]} 4. g3 {[%emt 0:00:00]} Be7 {[%emt 0:00:17]} 5. Bb2 {[%emt 0:00:20]} c5 {[%emt 0:00:21]} 6. Bg2 {[%emt 0:00:11]} d4 {[%emt 0:00:22]} 7. e3 {[%emt 0:06:58]} Nc6 {[%emt 0:01:16]} 8. exd4 {[%emt 0:01:37]} cxd4 {[%emt 0:00:23]} 9. d3 {[%emt 0:00:30]} e5 {[%emt 0:00:26]} 10. O-O {[%emt 0:00:45]} O-O {[%emt 0:00:16]} 11. Re1 {[%emt 0:02:23]} Bd6 {[%emt 0:01:41]} 12. Ba3 {[%emt 0:04:43]} Re8 13. c5 {[%emt 0:07:04]} Bf8 {[%emt 0:04:07]} 14. b4 {[%emt 0:00:38]} a6 {[%emt 0:00:26]} 15. Nbd2 {[%emt 0:00:50]} Bf5 {[%emt 0:00:43]} 16. Nc4 e4 {[%emt 0:04:28]} 17. dxe4 {[%emt 0:11:37]} Nxe4 {[%emt 0:01:45]} 18. Nh4 {[%emt 0:02:48]} Nc3 {[%emt 0:00:23]} 19. Qd2 {[%emt 0:00:43]} Be6 {[%emt 0:01:26]} 20. Nb6 {[%emt 0:05:36]} Rb8 {[%emt 0:01:18]} 21. f4 {[%emt 0:08:46]} g6 {[%emt 0:01:54]} 22. Bxc6 {[%emt 0:03:51]} bxc6 {[%emt 0:00:34]} 23. Nf3 {[%emt 0:00:14]} Bg7 {[%emt 0:00:44]} 24. Ne5 {[%emt 0:03:08]} Rxb6 {[%emt 0:01:10]} 25. cxb6 {[%emt 0:00:25]} Qxb6 {[%emt 0:00:02]} 26. Nd3 {[%emt 0:01:39]} Rd8 {[%emt 0:01:08]} 27. Nc5 {[%emt 0:07:46]} Bh3 {[%emt 0:01:08]} 28. Re7 {[%emt 0:07:02]} Rb8 {[%emt 0:03:58]} 29. Rae1 {[%emt 0:03:44]} Kf8 {[%emt 0:00:16]} 30. Nd7+ {[%emt 0:13:42]} Bxd7 {[%emt 0:00:27]} 31. Rxd7 {[%emt 0:00:01]} Nd5 {[%emt 0:00:35]} 32. b5+ {[%emt 0:01:42]} Kg8 {[%emt 0:00:26]} 33. bxc6 {[%emt 0:01:02]} Qxc6 {[%emt 0:01:19]} 34. Rd6 {[%emt 0:00:55]} Qb7 {[%emt 0:00:50]} 35. Qg2 {[%emt 0:02:55]} Nb4 {[%emt 0:01:37]} 36. Qxb7 {[%emt 0:00:24]} Rxb7 {[%emt 0:00:03]} 37. Rd8+ {[%emt 0:00:10]} Bf8 {[%emt 0:00:18]} 38. Ree8 {[%emt 0:00:11]} 1-0

[Event "8. Arber-Schachopen 2019"]
[Site "Bodenmais"]
[Date "2019.08.03"]
[Round "8.26"]
[White "Brands, Kevin"]
[Black "Beulertz, Stefan"]
[Result "0-1"]
[ECO "B40"]
[WhiteElo "1799"]
[BlackElo "2033"]
[Annotator "NA"]
[PlyCount "102"]
[EventDate "2019.07.27"]
[EventCountry "GER"]
[SourceTitle "playchess.com"]
[Source "ChessBase"]
[SourceQuality "1"]
[TimeControl "40/5400+30:1800+30"]

1. e4 {[%emt 0:00:00]} c5 {[%emt 0:00:00]} 2. Nf3 {[%emt 0:00:00]} e6 {[%emt 0:00:00]} 3. d4 {[%emt 0:00:05]} cxd4 {[%emt 0:00:04]} 4. Nxd4 {[%emt 0:00:05]} Qb6 {[%emt 0:00:11]} 5. Nb3 {[%emt 0:02:56]} Qc7 {[%emt 0:00:59]} 6. Nc3 {[%emt 0:02:04]} a6 {[%emt 0:00:43]} 7. Be2 {[%emt 0:07:38]} Nf6 {[%emt 0:04:48]} 8. O-O {[%emt 0:07:12]} Bb4 {[%emt 0:09:02]} 9. Bf3 {[%emt 0:02:33]} Nc6 {[%emt 0:02:58]} 10. Be3 {[%emt 0:10:54]} Ne5 {[%emt 0:07:56]} 11. Bd4 {[%emt 0:04:44]} Nc4 {[%emt 0:06:42]} 12. Bxf6 {[%emt 0:14:09]} gxf6 {[%emt 0:00:08]} 13. Qd4 {[%emt 0:00:05]} Be7 {[%emt 0:06:42]} 14. Rfe1 {[%emt 0:05:26]} Ne5 {[%emt 0:05:23]} 15. Bh5 {[%emt 0:04:52]} b5 {[%emt 0:02:03]} 16. f4 {[%emt 0:09:18]} Nc4 {[%emt 0:12:24]} 17. Rad1 {[%emt 0:09:59]} Qa7 {[%emt 0:07:38]} 18. Rd3 {[%emt 0:06:12]} Qxd4+ {[%emt 0:04:16]} 19. Nxd4 {[%emt 0:00:57]} Nxb2 {[%emt 0:00:18]} 20. Rd2 {[%emt 0:03:34]} Bb7 {[%emt 0:01:04]} 21. Kh1 {[%emt 0:02:28]} Rc8 {[%emt 0:00:51]} 22. Nd1 Nc4 {[%emt 0:02:10]} 23. Rde2 {[%emt 0:00:50]} Rg8 {[%emt 0:00:48]} 24. Bf3 {[%emt 0:01:48]} Kf8 {[%emt 0:03:51]} 25. Ne3 {[%emt 0:02:06]} Kg7 {[%emt 0:04:24]} 26. Rd1 {[%emt 0:02:13]} Nxe3 {[%emt 0:00:54]} 27. Rxe3 {[%emt 0:00:04]} d6 {[%emt 0:01:32]} 28. e5 {[%emt 0:01:07]} Bxf3 {[%emt 0:00:28]} 29. Nxf3 {[%emt 0:00:15]} Rgd8 {[%emt 0:01:00]} 30. exd6 {[%emt 0:00:55]} Rxd6 {[%emt 0:00:33]} 31. Nd4 {[%emt 0:00:15]} Kf8 {[%emt 0:07:39]} 32. Red3 {[%emt 0:00:43]} Rcd8 {[%emt 0:01:55]} 33. h3 {[%emt 0:00:23]} e5 {[%emt 0:01:26]} 34. Nc6 {[%emt 0:00:36]} Rxd3 {[%emt 0:00:10]} 35. cxd3 {[%emt 0:00:15]} Rd5 {[%emt 0:01:27]} 36. Nxe7 {[%emt 0:00:48]} Kxe7 {[%emt 0:00:11]} 37. Re1 {[%emt 0:00:20]} Ke6 {[%emt 0:00:17]} 38. fxe5 {[%emt 0:00:22]} fxe5 {[%emt 0:00:23]} 39. Re3 {[%emt 0:00:16]} f5 {[%emt 0:00:59]} 40. g4 {[%emt 0:01:01]} f4 {[%emt 0:00:48]} 41. Rf3 {[%emt 0:30:03]} b4 {[%emt 0:30:48]} 42. Kg2 {[%emt 0:00:00]} a5 {[%emt 0:00:00]} 43. a3 {[%emt 0:00:00]} Rd4 {[%emt 0:00:00]} 44. axb4 {[%emt 0:00:00]} axb4 {[%emt 0:00:00]} 45. Rf2 {[%emt 0:00:00]} Rxd3 {[%emt 0:00:00]} 46. Rb2 {[%emt 0:00:00]} b3 {[%emt 0:00:00]} 47. h4 {[%emt 0:00:00]} Rc3 {[%emt 0:00:00]} 48. Kf1 {[%emt 0:00:00]} Rc1+ {[%emt 0:00:00]} 49. Ke2 {[%emt 0:00:00]} Rc2+ {[%emt 0:00:00]} 50. Rxc2 {[%emt 0:00:00]} bxc2 {[%emt 0:00:00]} 51. Kd2 {[%emt 0:00:00]} f3 {[%emt 0:00:00]} 0-1

[Event "8. Arber-Schachopen 2019"]
[Site "Bodenmais"]
[Date "2019.08.04"]
[Round "9.1"]
[White "Poetz, Florian"]
[Black "Bogdanov, Egor"]
[Result "1/2-1/2"]
[ECO "C42"]
[WhiteElo "2389"]
[BlackElo "2407"]
[Annotator "NA"]
[PlyCount "25"]
[EventDate "2019.07.27"]
[EventCountry "GER"]
[SourceTitle "playchess.com"]
[Source "ChessBase"]
[SourceQuality "1"]
[TimeControl "40/5400+30:1800+30"]

1. e4 {[%emt 0:00:00]} e5 {[%emt 0:01:10]} 2. Nf3 {[%emt 0:00:00]} Nf6 {[%emt 0:00:23]} 3. Nxe5 {[%emt 0:00:00]} d6 {[%emt 0:00:29]} 4. Nf3 {[%emt 0:00:22]} Nxe4 {[%emt 0:00:08]} 5. Nc3 {[%emt 0:00:10]} Nxc3 {[%emt 0:00:13]} 6. dxc3 {[%emt 0:00:06]} Be7 {[%emt 0:00:12]} 7. Be3 {[%emt 0:00:13]} Nc6 {[%emt 0:00:38]} 8. Qd2 {[%emt 0:00:07]} Be6 {[%emt 0:00:20]} 9. O-O-O {[%emt 0:00:31]} Qd7 {[%emt 0:00:58]} 10. Kb1 {[%emt 0:01:36]} a6 {[%emt 0:05:00]} 11. h3 {[%emt 0:04:00]} h6 {[%emt 0:11:23]} 12. g4 {[%emt 0:05:09]} O-O-O {[%emt 0:06:02]} 13. Nd4 {[%emt 0:13:25]} 1/2-1/2

[Event "8. Arber-Schachopen 2019"]
[Site "Bodenmais"]
[Date "2019.08.04"]
[Round "9.2"]
[White "Hoffmann, Michael"]
[Black "Delchev, Aleksander"]
[Result "1/2-1/2"]
[ECO "A21"]
[WhiteElo "2438"]
[BlackElo "2571"]
[Annotator "ChessBase"]
[PlyCount "31"]
[EventDate "2019.07.27"]
[EventCountry "GER"]
[SourceTitle "playchess.com"]
[Source "ChessBase"]
[SourceQuality "1"]
[TimeControl "40/5400+30:1800+30"]

1. c4 {[%emt 0:00:00]} e5 {[%emt 0:00:00]} 2. Nc3 {[%emt 0:00:39]} Bb4 {[%emt 0:00:09]} 3. Nd5 {[%emt 0:00:47]} Bc5 {[%emt 0:00:04]} 4. b4 {[%emt 0:02:55]} Bf8 {[%emt 0:05:40]} 5. Bb2 {[%emt 0:01:18]} c6 {[%emt 0:00:44]} 6. Ne3 {[%emt 0:00:12]} d6 {[%emt 0:01:28]} 7. Qc2 {[%emt 0:11:57]} Nf6 {[%emt 0:00:26]} 8. g3 {[%emt 0:04:09]} Ng4 {[%emt 0:16:29]} 9. Nxg4 {[%emt 0:05:28]} Bxg4 {[%emt 0:00:04]} 10. Bg2 {[%emt 0:00:36]} Be7 {[%emt 0:00:04]} 11. Nf3 {[%emt 0:02:24]} Bf6 {[%emt 0:05:43]} 12. O-O {[%emt 0:05:10]} O-O {[%emt 0:00:09]} 13. h3 {[%emt 0:06:24]} Bh5 {[%emt 0:00:53]} 14. e3 d5 15. d3 Re8 16. Rac1 1/2-1/2

[Event "8. Arber-Schachopen 2019"]
[Site "Bodenmais"]
[Date "2019.08.04"]
[Round "9.3"]
[White "Mirzoev, Emil"]
[Black "Hopman, Pieter"]
[Result "1/2-1/2"]
[ECO "A21"]
[WhiteElo "2493"]
[BlackElo "2347"]
[Annotator "ChessBase"]
[PlyCount "23"]
[EventDate "2019.07.27"]
[EventCountry "GER"]
[SourceTitle "playchess.com"]
[Source "ChessBase"]
[SourceQuality "1"]
[TimeControl "40/5400+30:1800+30"]

1. c4 {[%emt 0:00:00]} e5 {[%emt 0:01:23]} 2. Nc3 {[%emt 0:00:00]} Bb4 {[%emt 0:00:04]} 3. Qc2 {[%emt 0:00:03]} Nf6 {[%emt 0:00:07]} 4. Nf3 {[%emt 0:00:03]} Nc6 {[%emt 0:00:58]} 5. e3 {[%emt 0:00:14]} O-O {[%emt 0:00:14]} 6. Nd5 {[%emt 0:00:09]} Re8 {[%emt 0:07:09]} 7. a3 {[%emt 0:00:25]} Bf8 {[%emt 0:00:32]} 8. Qf5 {[%emt 0:00:06]} Nxd5 {[%emt 0:01:36]} 9. cxd5 {[%emt 0:00:08]} d6 {[%emt 0:00:29]} 10. Qc2 {[%emt 0:03:16]} Ne7 {[%emt 0:01:17]} 11. Bc4 {[%emt 0:00:03]} g6 {[%emt 0:03:20]} 12. b4 {[%emt 0:02:50]} 1/2-1/2

[Event "8. Arber-Schachopen 2019"]
[Site "Bodenmais"]
[Date "2019.08.04"]
[Round "9.4"]
[White "Hausner, Ivan"]
[Black "Milov, Leonid"]
[Result "1/2-1/2"]
[ECO "B40"]
[WhiteElo "2370"]
[BlackElo "2472"]
[Annotator "ChessBase"]
[PlyCount "102"]
[EventDate "2019.07.27"]
[EventCountry "GER"]
[SourceTitle "playchess.com"]
[Source "ChessBase"]
[SourceQuality "1"]
[TimeControl "40/5400+30:1800+30"]

1. e4 {[%emt 0:00:00]} c5 {[%emt 0:01:38]} 2. Nf3 {[%emt 0:00:00]} e6 {[%emt 0:00:27]} 3. b3 {[%emt 0:00:00]} a6 {[%emt 0:00:28]} 4. Bb2 {[%emt 0:00:00]} Nc6 {[%emt 0:00:04]} 5. Nc3 {[%emt 0:00:26]} d6 {[%emt 0:07:00]} 6. d4 {[%emt 0:02:12]} cxd4 {[%emt 0:00:14]} 7. Nxd4 {[%emt 0:00:04]} Bd7 {[%emt 0:00:20]} 8. g3 {[%emt 0:01:01]} Nf6 {[%emt 0:00:47]} 9. Bg2 {[%emt 0:00:04]} Rc8 {[%emt 0:03:50]} 10. O-O {[%emt 0:01:12]} Be7 {[%emt 0:00:22]} 11. Nce2 {[%emt 0:02:08]} b5 {[%emt 0:02:29]} 12. Rc1 {[%emt 0:02:41]} O-O {[%emt 0:04:35]} 13. Qd2 {[%emt 0:01:36]} Nxd4 {[%emt 0:15:38]} 14. Nxd4 {[%emt 0:00:16]} Qb6 {[%emt 0:00:22]} 15. Bc3 {[%emt 0:04:38]} Bd8 {[%emt 0:09:22]} 16. Rfd1 {[%emt 0:06:38]} a5 {[%emt 0:02:52]} 17. Bb2 {[%emt 0:00:12]} Be7 {[%emt 0:03:01]} 18. Qe2 {[%emt 0:01:24]} Rfd8 {[%emt 0:03:22]} 19. c4 {[%emt 0:04:15]} bxc4 {[%emt 0:02:17]} 20. bxc4 {[%emt 0:00:06]} Ba4 {[%emt 0:00:54]} 21. Re1 {[%emt 0:06:27]} Nd7 {[%emt 0:00:58]} 22. Nb5 {[%emt 0:01:05]} Ne5 {[%emt 0:08:38]} 23. Bd4 {[%emt 0:02:26]} Qa6 {[%emt 0:01:43]} 24. Bf1 {[%emt 0:06:41]} Bf6 {[%emt 0:09:30]} 25. Kg2 {[%emt 0:08:20]} Qa8 {[%emt 0:03:55]} 26. Qb2 {[%emt 0:03:21]} Bxb5 {[%emt 0:02:34]} 27. cxb5 {[%emt 0:00:16]} Rxc1 {[%emt 0:00:38]} 28. Qxc1 {[%emt 0:00:12]} Nf3 {[%emt 0:01:20]} 29. Kxf3 {[%emt 0:00:24]} Bxd4 {[%emt 0:00:06]} 30. Qc6 {[%emt 0:01:17]} Qb8 {[%emt 0:04:30]} 31. Rc1 {[%emt 0:01:33]} Bb6 {[%emt 0:00:34]} 32. a4 {[%emt 0:00:29]} g6 {[%emt 0:00:04]} 33. Kg2 {[%emt 0:00:48]} Qa7 {[%emt 0:01:53]} 34. Rc2 {[%emt 0:00:19]} Kg7 {[%emt 0:01:50]} 35. Qc3+ {[%emt 0:00:15]} Kg8 {[%emt 0:01:18]} 36. Qf6 {[%emt 0:00:11]} Re8 {[%emt 0:00:49]} 37. Rc6 {[%emt 0:00:22]} Bd4 {[%emt 0:02:00]} 38. Qf3 {[%emt 0:00:09]} Rd8 {[%emt 0:03:13]} 39. Bc4 {[%emt 0:01:35]} Kg7 {[%emt 0:01:25]} 40. Bb3 {[%emt 0:00:32]} Rd7 {[%emt 0:01:42]} 41. Qe2 {[%emt 0:31:13]} Rd8 {[%emt 0:31:04]} 42. Qd2 {[%emt 0:02:39]} Rd7 {[%emt 0:00:00]} 43. Rc8 {[%emt 0:00:00]} Bf6 {[%emt 0:00:00]} 44. Qc2 {[%emt 0:00:00]} Bd4 {[%emt 0:00:00]} 45. h4 {[%emt 0:00:00]} h5 46. Qd2 Bf6 {[%emt 0:00:00]} 47. Rc6 {[%emt 0:00:00]} Qd4 {[%emt 0:00:00]} 48. Qxd4 {[%emt 0:00:00]} Bxd4 49. Kf3 {[%emt 0:00:00]} Kf6 {[%emt 0:00:00]} 50. Ke2 {[%emt 0:00:00]} Ke7 {[%emt 0:00:00]} 51. Ra6 {[%emt 0:00:00]} Ra7 1/2-1/2

[Event "8. Arber-Schachopen 2019"]
[Site "Bodenmais"]
[Date "2019.08.04"]
[Round "9.5"]
[White "Kottmair, Toni"]
[Black "Peng, Li Min"]
[Result "0-1"]
[ECO "A09"]
[WhiteElo "2086"]
[BlackElo "2466"]
[Annotator "ChessBase"]
[PlyCount "62"]
[EventDate "2019.07.27"]
[EventCountry "GER"]
[SourceTitle "playchess.com"]
[Source "ChessBase"]
[SourceQuality "1"]
[TimeControl "40/5400+30:1800+30"]

1. Nf3 {[%emt 0:00:00]} d5 {[%emt 0:00:25]} 2. c4 {[%emt 0:00:11]} d4 {[%emt 0:00:06]} 3. e3 {[%emt 0:00:42]} c5 {[%emt 0:00:22]} 4. b4 {[%emt 0:02:17]} f6 {[%emt 0:01:08]} 5. exd4 {[%emt 0:22:57]} cxd4 {[%emt 0:00:39]} 6. Bd3 {[%emt 0:00:46]} e5 {[%emt 0:00:35]} 7. a3 {[%emt 0:17:49]} a5 {[%emt 0:00:12]} 8. O-O {[%emt 0:09:56]} axb4 {[%emt 0:01:05]} 9. Re1 {[%emt 0:04:23]} Nc6 {[%emt 0:03:49]} 10. Be4 {[%emt 0:07:28]} Bc5 {[%emt 0:04:56]} 11. Nh4 {[%emt 0:13:18]} Be6 {[%emt 0:02:32]} 12. d3 {[%emt 0:01:51]} Nge7 {[%emt 0:00:31]} 13. f4 {[%emt 0:01:36]} O-O {[%emt 0:04:42]} 14. f5 {[%emt 0:00:15]} Bd7 {[%emt 0:03:44]} 15. Bb2 {[%emt 0:08:12]} Qb6 {[%emt 0:02:06]} 16. Rf1 {[%emt 0:02:00]} bxa3 {[%emt 0:02:54]} 17. Bxa3 {[%emt 0:00:11]} Nb4 {[%emt 0:00:29]} 18. Nd2 {[%emt 0:01:43]} Nxd3 {[%emt 0:02:38]} 19. Bxd3 {[%emt 0:00:23]} Rxa3 {[%emt 0:00:13]} 20. Rxa3 {[%emt 0:00:03]} Bxa3 {[%emt 0:00:03]} 21. c5 {[%emt 0:00:36]} Bxc5 {[%emt 0:00:47]} 22. Bc4+ {[%emt 0:00:44]} Kh8 {[%emt 0:00:04]} 23. Rf3 {[%emt 0:00:59]} Ra8 {[%emt 0:04:42]} 24. Rh3 {[%emt 0:02:08]} d3+ {[%emt 0:00:07]} 25. Kf1 {[%emt 0:00:15]} Be3 {[%emt 0:00:51]} 26. Bxd3 {[%emt 0:01:40]} Bxd2 {[%emt 0:01:42]} 27. Qxd2 {[%emt 0:00:01]} Ra1+ {[%emt 0:00:06]} 28. Ke2 {[%emt 0:00:08]} Qg1 {[%emt 0:00:33]} 29. Kf3 {[%emt 0:01:17]} Bc6+ {[%emt 0:00:18]} 30. Kg4 {[%emt 0:00:35]} Qd4+ {[%emt 0:00:52]} 31. Kg3 {[%emt 0:00:23]} Ra3 {[%emt 0:00:09]} 0-1

[Event "8. Arber-Schachopen 2019"]
[Site "Bodenmais"]
[Date "2019.08.04"]
[Round "9.6"]
[White "Bensch, Patrick"]
[Black "Kasueschke, Lars"]
[Result "1-0"]
[ECO "B90"]
[WhiteElo "2197"]
[BlackElo "1934"]
[Annotator "NA"]
[PlyCount "63"]
[EventDate "2019.07.27"]
[EventCountry "GER"]
[SourceTitle "playchess.com"]
[Source "ChessBase"]
[SourceQuality "1"]
[TimeControl "40/5400+30:1800+30"]

1. e4 {[%emt 0:00:00]} c5 {[%emt 0:00:00]} 2. Nf3 {[%emt 0:00:16]} d6 {[%emt 0:00:05]} 3. d4 {[%emt 0:00:21]} cxd4 {[%emt 0:00:20]} 4. Nxd4 {[%emt 0:00:03]} Nf6 {[%emt 0:00:15]} 5. Nc3 {[%emt 0:00:25]} a6 {[%emt 0:00:10]} 6. f3 {[%emt 0:00:38]} e5 {[%emt 0:01:01]} 7. Nb3 {[%emt 0:00:17]} Be6 {[%emt 0:02:08]} 8. Be3 {[%emt 0:00:22]} h5 {[%emt 0:00:35]} 9. Qd2 {[%emt 0:00:50]} Be7 {[%emt 0:01:33]} 10. Nd5 {[%emt 0:03:13]} Bxd5 {[%emt 0:02:58]} 11. exd5 {[%emt 0:00:04]} Nbd7 {[%emt 0:01:40]} 12. c4 {[%emt 0:09:18]} a5 {[%emt 0:12:50]} 13. Rc1 {[%emt 0:02:58]} a4 {[%emt 0:05:29]} 14. Na1 {[%emt 0:00:04]} e4 {[%emt 0:07:15]} 15. f4 {[%emt 0:06:16]} Ng4 {[%emt 0:05:14]} 16. Bd4 {[%emt 0:09:05]} Bf6 {[%emt 0:01:00]} 17. Nc2 {[%emt 0:02:14]} O-O {[%emt 0:10:21]} 18. Be2 {[%emt 0:02:45]} Bxd4 {[%emt 0:11:05]} 19. Qxd4 {[%emt 0:01:38]} Nc5 {[%emt 0:02:22]} 20. O-O {[%emt 0:01:37]} Qh4 {[%emt 0:07:49]} 21. h3 {[%emt 0:02:35]} Nf6 {[%emt 0:01:56]} 22. Ne3 {[%emt 0:00:55]} g6 {[%emt 0:02:43]} 23. g3 {[%emt 0:10:57]} Qxg3+ {[%emt 0:04:48]} 24. Ng2 {[%emt 0:00:03]} Nxd5 {[%emt 0:03:08]} 25. cxd5 {[%emt 0:01:04]} Qxh3 {[%emt 0:00:36]} 26. Rc3 {[%emt 0:00:44]} Qd7 {[%emt 0:00:56]} 27. f5 {[%emt 0:00:53]} Kh7 {[%emt 0:03:48]} 28. Rh3 {[%emt 0:09:25]} f6 {[%emt 0:04:27]} 29. fxg6+ {[%emt 0:00:28]} Kxg6 {[%emt 0:00:57]} 30. Nf4+ {[%emt 0:00:48]} Kf7 {[%emt 0:01:16]} 31. Bxh5+ {[%emt 0:01:16]} Ke7 {[%emt 0:00:06]} 32. Ng6+ {[%emt 0:01:16]} 1-0

[Event "8. Arber-Schachopen 2019"]
[Site "Bodenmais"]
[Date "2019.08.04"]
[Round "9.7"]
[White "Vuckovic, Zarko"]
[Black "Sergeev, Vladimir"]
[Result "1/2-1/2"]
[ECO "B00"]
[WhiteElo "2214"]
[BlackElo "2415"]
[Annotator "ChessBase"]
[PlyCount "116"]
[EventDate "2019.07.27"]
[EventCountry "GER"]
[SourceTitle "playchess.com"]
[Source "ChessBase"]
[SourceQuality "1"]
[TimeControl "40/5400+30:1800+30"]

1. e4 {[%emt 0:00:00]} d6 {[%emt 0:00:00]} 2. d4 {[%emt 0:00:00]} g6 {[%emt 0:00:00]} 3. Nc3 {[%emt 0:00:05]} c6 {[%emt 0:00:08]} 4. Be3 {[%emt 0:01:42]} Qb6 {[%emt 0:00:33]} 5. d5 {[%emt 0:05:07]} c5 {[%emt 0:04:55]} 6. Bb5+ {[%emt 0:00:35]} Bd7 {[%emt 0:01:08]} 7. a4 {[%emt 0:00:08]} Bg7 {[%emt 0:00:07]} 8. Nge2 {[%emt 0:01:09]} Bxb5 {[%emt 0:01:26]} 9. axb5 {[%emt 0:00:18]} Nf6 {[%emt 0:00:13]} 10. h3 {[%emt 0:03:12]} Nbd7 {[%emt 0:00:33]} 11. O-O {[%emt 0:02:26]} O-O {[%emt 0:00:09]} 12. f4 {[%emt 0:09:36]} a6 {[%emt 0:02:01]} 13. e5 {[%emt 0:07:08]} dxe5 {[%emt 0:03:40]} 14. fxe5 {[%emt 0:01:21]} Nxe5 {[%emt 0:00:37]} 15. b4 {[%emt 0:00:14]} axb5 {[%emt 0:16:35]} 16. Bxc5 {[%emt 0:02:31]} Rxa1 {[%emt 0:07:20]} 17. Bxb6 {[%emt 0:00:24]} Rxd1 {[%emt 0:00:10]} 18. Rxd1 {[%emt 0:00:05]} Nfd7 {[%emt 0:18:32]} 19. Bc7 {[%emt 0:04:39]} Nc4 {[%emt 0:03:23]} 20. Nxb5 {[%emt 0:05:17]} Rc8 {[%emt 0:07:44]} 21. Rd3 {[%emt 0:09:14]} Nd6 {[%emt 0:09:29]} 22. Bxd6 {[%emt 0:04:16]} exd6 {[%emt 0:00:09]} 23. c3 {[%emt 0:00:10]} Be5 {[%emt 0:01:19]} 24. Ned4 {[%emt 0:00:38]} Nf6 {[%emt 0:02:20]} 25. Nf3 {[%emt 0:04:27]} Bg3 {[%emt 0:00:47]} 26. Nd2 {[%emt 0:00:38]} Be5 {[%emt 0:09:16]} 27. g3 {[%emt 0:00:58]} Kf8 {[%emt 0:02:10]} 28. Kg2 {[%emt 0:00:45]} Ke7 {[%emt 0:00:06]} 29. Kf3 {[%emt 0:12:26]} h5 {[%emt 0:00:32]} 30. c4 {[%emt 0:04:13]} Nd7 {[%emt 0:01:31]} 31. Ra3 {[%emt 0:00:23]} Nb6 {[%emt 0:02:26]} 32. Ra7 {[%emt 0:00:05]} Nxc4 {[%emt 0:01:05]} 33. Rxb7+ {[%emt 0:00:03]} Kf8 {[%emt 0:00:16]} 34. Ne4 {[%emt 0:00:04]} f5 {[%emt 0:03:17]} 35. Ng5 {[%emt 0:00:15]} Ra8 {[%emt 0:00:44]} 36. g4 {[%emt 0:01:57]} hxg4+ {[%emt 0:01:15]} 37. hxg4 {[%emt 0:00:02]} fxg4+ {[%emt 0:00:07]} 38. Kxg4 {[%emt 0:00:33]} Ne3+ {[%emt 0:00:03]} 39. Kh4 {[%emt 0:00:32]} Nxd5 {[%emt 0:00:09]} 40. Ne6+ {[%emt 0:00:16]} Kg8 {[%emt 0:00:04]} 41. Kg5 {[%emt 0:31:06]} Ra1 {[%emt 0:33:38]} 42. Kxg6 {[%emt 0:01:54]} Rg1+ {[%emt 0:00:07]} 43. Kf5 {[%emt 0:00:06]} Rf1+ {[%emt 0:00:00]} 44. Ke4 {[%emt 0:00:00]} Nxb4 {[%emt 0:00:00]} 45. Nbc7 {[%emt 0:00:00]} Na2 {[%emt 0:00:00]} 46. Nd5 {[%emt 0:00:00]} Nc3+ {[%emt 0:00:00]} 47. Nxc3 {[%emt 0:00:00]} Bxc3 {[%emt 0:00:00]} 48. Nf4 {[%emt 0:00:00]} Kf8 {[%emt 0:00:00]} 49. Ne6+ {[%emt 0:00:00]} Ke8 {[%emt 0:00:00]} 50. Nc7+ {[%emt 0:00:00]} Kf8 {[%emt 0:00:00]} 51. Ne6+ {[%emt 0:00:00]} Kg8 {[%emt 0:00:00]} 52. Rd7 {[%emt 0:00:00]} Be5 {[%emt 0:00:00]} 53. Nc7 Rf2 {[%emt 0:00:00]} 54. Nb5 {[%emt 0:00:00]} Rd2 {[%emt 0:00:00]} 55. Kf5 {[%emt 0:00:00]} Bh2 {[%emt 0:00:00]} 56. Nxd6 {[%emt 0:00:00]} Bxd6 {[%emt 0:00:00]} 57. Ke6 {[%emt 0:00:00]} Bf4 {[%emt 0:00:00]} 58. Rxd2 {[%emt 0:00:00]} Bxd2 {[%emt 0:00:00]} 1/2-1/2